fUSD/lending_fUSD_20251204
["ID","MTS","AMOUNT","RATE_DAILY","PERIOD"]
[396238914,1764861037936,-500.0,0.00016799,2]
[396238915,1764861037945,-142.7857867,0.00016799,2]
[396238916,1764861037957,-349.30558875,0.00016799,2]
[396238917,1764861038254,-7.90862455,0.00016799,2]
[396238918,1764861038265,-500.0,0.00016799,2]
[396238919,1764861038274,-500.0,0.00016799,2]
[396238920,1764861038284,-500.0,0.00016799,2]
[396238921,1764861038294,-500.0,0.00016799,2]
[396238922,1764861038303,-500.0,0.00016799,2]
[396238923,1764861038313,-500.0,0.00016799,2]
[396238924,1764861038323,-500.0,0.00016799,2]
[396238925,1764861038332,-500.0,0.00016799,2]
[396238926,1764861038342,-179.3099176,0.00016799,2]
[396238927,1764861038355,-320.6900824,0.00016799,2]
[396238928,1764861038365,-500.0,0.00016799,2]
[396238929,1764861038376,-150.0,0.00016799,2]
[396238930,1764861038386,-500.0,0.00016799,2]
[396238931,1764861038396,-500.0,0.00016799,2]
[396238932,1764861038406,-500.0,0.00016799,2]
[396238934,1764861038417,-500.0,0.00016799,2]
[396238935,1764861038426,-500.0,0.00016799,2]
[396238937,1764861038436,-500.0,0.00016799,2]
[396238939,1764861038446,-500.0,0.00016799,2]
[396238941,1764861038455,-500.0,0.00016799,2]
[396238942,1764861038465,-500.0,0.00016799,2]
[396238943,1764861038475,-500.0,0.00016799,2]
[396238944,1764861038484,-500.0,0.00016799,2]
[396238945,1764861038495,-500.0,0.00016799,2]
[396238946,1764861038505,-500.0,0.00016799,2]
[396238947,1764861038515,-500.0,0.00016799,2]
[396238948,1764861038525,-500.0,0.00016799,2]
[396238949,1764861038535,-500.0,0.00016799,2]
[396238950,1764861038544,-500.0,0.00016799,2]
[396238951,1764861038554,-500.0,0.00016799,2]
[396238952,1764861038563,-415.0,0.00016799,2]
[396238953,1764861038572,-500.0,0.00016799,2]
[396238954,1764861038582,-500.0,0.00016799,2]
[396238955,1764861038592,-1917.3641,0.000168,2]
[396238956,1764861038601,-939.91981397,0.000168,2]
[396238957,1764861038616,-1201.25817366,0.000168,2]
[396238958,1764861038627,-822.86706084,0.000168,2]
[396238962,1764861039948,-1435.0,0.000168,2]
[396238963,1764861039961,-9882.34216851,0.000168,2]
[396238964,1764861039984,-1421.76578285,0.000168,2]
[396238965,1764861039997,-486.14405019,0.000168,2]
[396238966,1764861040026,-6242.24768139,0.000168,2]
[396238967,1764861040322,-251.39999997,0.000168,2]
[396238968,1764861040334,-2659.1802,0.000168,2]
[396238969,1764861040417,-974657.87506862,0.000168,2]
[396238971,1764861040428,-999.0,0.00016816,3]
[396238972,1764861040437,-976.88386487,0.00016839,2]
[396238973,1764861040447,-200.0,0.00016839,2]
[396238974,1764861040456,-277.35679052,0.00016839,2]
[396238975,1764861040466,-1900.0,0.00016839,2]
[396238976,1764861040476,-151.96835927,0.00016839,2]
[396238977,1764861040485,-300.0,0.00016839,2]
[396238978,1764861040496,-257.76826559,0.0001689,2]
[396238979,1764861040506,-566.0050508,0.0001689,2]
[396238980,1764861040515,-8613.06467827,0.00016899,2]
[396238981,1764861040524,-1072.498,0.00016899,2]
[396238982,1764861040534,-160.91292303,0.00016899,2]
[396238983,1764861040543,-500.0,0.00016899,2]
[396238984,1764861040552,-500.0,0.00016899,2]
[396238985,1764861040562,-500.0,0.00016899,2]
[396238986,1764861040572,-719530.1566,0.000169,2]
[396238987,1764861040581,-10000.0,0.000169,2]
[396238988,1764861040591,-317.49489766,0.000169,2]
[396238989,1764861040600,-3361.79609909,0.000169,2]
[396238990,1764861040609,-420.75030344,0.000169,2]
[396238991,1764861040618,-1093.29239124,0.00016944,2]
[396238992,1764861040627,-369.0,0.00016959,2]
[396238993,1764861040637,-1477.09231057,0.0001697,2]
[396238994,1764861040647,-500.0,0.00016973,2]
[396238995,1764861040656,-501.41731191,0.00016973,2]
[396238996,1764861040666,-161.84150459,0.00016973,2]
[396238997,1764861040675,-598.94895177,0.00016973,2]
[396238998,1764861040685,-500.67287151,0.00016973,2]
[396238999,1764861040695,-500.81969905,0.00016973,2]
[396239000,1764861040704,-501.53853237,0.00016973,2]
[396239001,1764861040718,-500.76674524,0.00016973,2]
[396239002,1764861040727,-502.19919953,0.00016973,2]
[396239003,1764861040736,-160.03289921,0.00016973,2]
[396239004,1764861040748,-500.7510768,0.00016973,2]
[396239005,1764861040758,-500.49464942,0.00016973,2]
[396239006,1764861040767,-500.87735667,0.00016973,2]
[396239007,1764861040780,-501.2795972,0.00016973,2]
[396239008,1764861040790,-356.06806903,0.00016973,2]
[396239009,1764861040800,-500.0,0.00016973,2]
[396239010,1764861040810,-504.23651257,0.00016973,2]
[396239011,1764861040820,-500.72119326,0.00016973,2]
[396239012,1764861040829,-500.0,0.00016973,2]
[396239013,1764861040839,-570.54818201,0.00016973,2]
[396239014,1764861040849,-165.12913536,0.00016973,2]
[396239015,1764861040858,-500.53943789,0.00016973,2]
[396239016,1764861040868,-155.04087109,0.00016973,2]
[396239017,1764861040878,-502.65219167,0.00016973,2]
[396239018,1764861040887,-607.0,0.00016973,2]
[396239019,1764861040897,-500.0,0.00016973,2]
[396239020,1764861040906,-150.0,0.00016973,2]
[396239021,1764861040916,-500.0,0.00016973,2]
[396239022,1764861040925,-150.0,0.00016973,2]
[396239023,1764861040934,-500.0,0.00016973,2]
[396239024,1764861040943,-505.52202945,0.00016983,2]
[396239025,1764861040952,-1000.0,0.0001699,2]
[396239026,1764861040961,-151.0,0.0001699,2]
[396239027,1764861040972,-500.0,0.0001699,2]
[396239028,1764861040984,-2000.0,0.0001699,2]
[396239029,1764861040994,-1000.0,0.0001699,2]
[396239031,1764861041004,-2000.0,0.0001699,2]
[396239032,1764861041015,-500.0,0.0001699,2]
[396239034,1764861041024,-1000.0,0.0001699,2]
[396239036,1764861041034,-500.0,0.0001699,2]
[396239037,1764861041043,-1000.0,0.0001699,2]
[396239038,1764861041054,-2000.0,0.0001699,2]
[396239039,1764861041063,-500.0,0.0001699,2]
[396239040,1764861041072,-1000.0,0.0001699,2]
[396239042,1764861041081,-2000.0,0.0001699,2]
[396239043,1764861041090,-500.0,0.0001699,2]
[396239045,1764861041101,-1000.0,0.0001699,2]
[396239047,1764861041110,-2000.0,0.0001699,2]
[396239049,1764861041119,-155.52772105,0.0001699,2]
[396239051,1764861041130,-500.0,0.0001699,2]
[396239053,1764861041139,-1000.0,0.0001699,2]
[396239055,1764861041149,-2000.0,0.0001699,2]
[396239065,1764861041302,-500.0,0.0001699,2]
[396239066,1764861041322,-1000.0,0.0001699,2]
[396239067,1764861041331,-2000.0,0.0001699,2]
[396239068,1764861041341,-500.0,0.0001699,2]
[396239069,1764861041350,-1000.0,0.0001699,2]
[396239070,1764861041361,-2000.0,0.0001699,2]
[396239071,1764861041371,-500.0,0.0001699,2]
[396239072,1764861041380,-2000.0,0.0001699,2]
[396239073,1764861041391,-1000.0,0.0001699,2]
[396239074,1764861041401,-500.0,0.0001699,2]
[396239075,1764861041410,-1000.0,0.0001699,2]
[396239076,1764861041420,-500.0,0.0001699,2]
[396239077,1764861041430,-500.0,0.0001699,2]
[396239078,1764861041440,-151.0,0.0001699,2]
[396239079,1764861041449,-574.12855637,0.0001699,2]
[396239080,1764861041459,-463.13997241,0.0001699,2]
[396239081,1764861041468,-151.0,0.0001699,2]
[396239082,1764861041478,-500.0,0.0001699,2]
[396239083,1764861041489,-500.0,0.0001699,2]
[396239084,1764861041499,-500.0,0.0001699,2]
[396239085,1764861041509,-250.0,0.0001699,2]
[396239086,1764861041519,-500.0,0.0001699,2]
[396239087,1764861041532,-500.0,0.0001699,2]
[396239088,1764861041542,-500.0,0.0001699,2]
[396239089,1764861041553,-500.0,0.0001699,2]
[396239090,1764861041565,-500.0,0.0001699,2]
[396239091,1764861041576,-500.0,0.0001699,2]
[396239092,1764861041586,-500.0,0.0001699,2]
[396239093,1764861041596,-500.0,0.0001699,2]
[396239094,1764861041607,-250.0,0.0001699,2]
[396239095,1764861041616,-358.93157713,0.0001699,2]
[396239096,1764861041626,-250.0,0.0001699,2]
[396239097,1764861041636,-250.0,0.0001699,2]
[396239098,1764861041647,-250.0,0.0001699,2]
[396239099,1764861041657,-250.0,0.0001699,2]
[396239100,1764861041666,-250.0,0.0001699,2]
[396239101,1764861041677,-250.0,0.0001699,2]
[396239102,1764861041687,-250.0,0.0001699,2]
[396239103,1764861041697,-250.0,0.0001699,2]
[396239104,1764861041706,-681.47,0.0001699,2]
[396239105,1764861041715,-566.0050508,0.0001699,2]
[396239106,1764861041725,-300.0,0.00016999,2]
[396239107,1764861041734,-500.0,0.00016999,2]
[396239108,1764861041745,-500.0,0.00016999,2]
[396239109,1764861041755,-500.0,0.00016999,2]
[396239110,1764861041764,-500.0,0.00016999,2]
[396239111,1764861041774,-486.54272582,0.00016999,2]
[396239112,1764861041784,-1463.6717013,0.00016999,2]
[396239113,1764861041794,-367.11961321,0.00016999,2]
[396239114,1764861041803,-635.9508114,0.00016999,2]
[396239115,1764861041813,-300.0,0.00016999,2]
[396239116,1764861041823,-935758.04666783,0.00017,2]
[396239117,1764861042186,-3251.67854915,0.00017,2]
[396239118,1764861042198,-530.6,0.00017,2]
[396239128,1764861044848,-1213.37548336,0.00017,2]
[396239129,1764861044859,-922.84192,0.00017,2]
[396239130,1764861044915,-867.26068256,0.00017,2]
[396239131,1764861045010,-1947.79085535,0.00017,2]
[396239132,1764861045023,-22127.3474394,0.00017,2]
[396239145,1764861045934,-311.46973278,0.00017,2]
[396239146,1764861045946,-759.58466666,0.00017,2]
[396239147,1764861045958,-451.27459264,0.00017,2]
[396239148,1764861046357,-4360.90655014,0.00017,2]
[396239171,1764861483774,1000.0,0.00025,120]
[396239172,1764861618303,-1200.0,0.00015872,2]
[396239173,1764861618329,-283.0,0.00015872,2]
[396239174,1764861618357,-521.20641277,0.00015873,2]
[396239175,1764861618384,-500.0,0.00015873,2]
[396239176,1764861618409,-501.34426787,0.00015873,2]
[396239177,1764861618437,-501.68277734,0.00015873,2]
[396239178,1764861618464,-500.78335608,0.00015873,2]
[396239179,1764861618490,-501.85227066,0.00015873,2]
[396239180,1764861618515,-502.39184682,0.00015873,2]
[396239181,1764861618540,-1000.0,0.00016257,2]
[396239182,1764861618565,-426.59,0.00016438,2]
[396239183,1764861618590,-35302.34,0.00016438,2]
[396239184,1764861618615,-8238.5,0.00016438,2]
[396239185,1764861618645,-25020.30906846,0.000167,2]
[396239186,1764861650289,244.4045,0.00022,30]
[396239187,1764861658184,2000.0,0.00022,30]
[396239188,1764861924771,163.0,0.00022,30]
[396239192,1764862025057,555.4543864,0.000145,4]
[396239223,1764862232070,-365.72741999,0.00015873,2]
[396239226,1764862232080,-502.78054147,0.00015873,2]
[396239228,1764862232089,-201.10931532,0.00015873,2]
[396239230,1764862232099,-195.0,0.00015949,2]
[396239232,1764862232108,-300.0,0.00015999,2]
[396239233,1764862232118,-659.0,0.00015999,2]
[396239235,1764862232128,-19989.26668102,0.00016,4]
[396239237,1764862232139,-3656.82895636,0.00016,4]
[396239239,1764862232151,-543.98998276,0.00016,4]
[396239240,1764862232162,-366.13195705,0.00016,4]
[396239241,1764862232174,-553.0612838,0.00016,4]
[396239242,1764862232185,-485.86302884,0.00016,4]
[396239243,1764862232217,-700.36150344,0.00016,4]
[396239282,1764862238437,-825.80335874,0.00016,4]
[396239283,1764862238454,-1435.01372745,0.00016,4]
[396239284,1764862238466,-734.20333733,0.00016,4]
[396239286,1764862238477,-2402.84123765,0.00016,4]
[396239291,1764862238517,-81082.6,0.00016,4]
[396239295,1764862238551,-813.8673398,0.00016,4]
[396239296,1764862238563,-7651.48939707,0.00016,4]
[396239297,1764862238573,-261.23,0.00016026,2]
[396239298,1764862238583,-8321.59026287,0.000162,5]
[396239299,1764862238596,-8825.81328502,0.000162,5]
[396239300,1764862238606,-250.0,0.00016257,2]
[396239301,1764862238616,-49450.5671,0.000166,2]
[396239302,1764862238625,-1000.0,0.00016688,2]
[396239303,1764862238635,-222.4738,0.0001669,2]
[396239304,1764862238645,-500.0,0.0001669,2]
[396239305,1764862238654,-500.0,0.0001669,2]
[396239306,1764862238664,-251.08563354,0.0001669,2]
[396239307,1764862238673,-151.0,0.00016692,2]
[396239308,1764862238683,-151.0,0.00016692,2]
[396239309,1764862238692,-500.0,0.00016692,2]
[396239310,1764862238702,-250.0,0.00016692,2]
[396239311,1764862238713,-1900.0,0.00016692,2]
[396239312,1764862238722,-500.0,0.00016692,2]
[396239313,1764862238731,-500.0,0.00016692,2]
[396239314,1764862238742,-250.0,0.00016692,2]
[396239315,1764862238752,-500.0,0.00016692,2]
[396239316,1764862238761,-500.0,0.00016692,2]
[396239317,1764862238771,-250.0,0.00016692,2]
[396239318,1764862238780,-500.0,0.00016692,2]
[396239319,1764862238790,-500.0,0.00016692,2]
[396239320,1764862238799,-250.0,0.00016692,2]
[396239321,1764862238808,-500.0,0.00016692,2]
[396239322,1764862238817,-500.0,0.00016692,2]
[396239323,1764862238826,-250.0,0.00016692,2]
[396239324,1764862238836,-500.0,0.00016692,2]
[396239325,1764862238846,-500.0,0.00016692,2]
[396239326,1764862238855,-155.52772105,0.00016692,2]
[396239327,1764862238865,-250.0,0.00016692,2]
[396239328,1764862238875,-500.0,0.00016692,2]
[396239329,1764862238885,-620.0,0.00016692,2]
[396239330,1764862238895,-500.0,0.00016692,2]
[396239331,1764862238904,-250.0,0.00016692,2]
[396239332,1764862238914,-500.0,0.00016692,2]
[396239333,1764862238924,-500.0,0.00016692,2]
[396239334,1764862238934,-250.0,0.00016692,2]
[396239335,1764862238943,-500.0,0.00016692,2]
[396239336,1764862238953,-250.0,0.00016692,2]
[396239337,1764862238963,-500.0,0.00016692,2]
[396239338,1764862238973,-500.0,0.00016692,2]
[396239339,1764862238983,-250.0,0.00016692,2]
[396239340,1764862238999,-500.0,0.00016692,2]
[396239341,1764862239009,-500.0,0.00016692,2]
[396239342,1764862239019,-250.0,0.00016692,2]
[396239343,1764862239029,-500.0,0.00016692,2]
[396239344,1764862239039,-500.0,0.00016692,2]
[396239345,1764862239049,-335.66906055,0.00016692,2]
[396239346,1764862239059,-574.12855637,0.00016692,2]
[396239347,1764862239069,-463.13997241,0.00016692,2]
[396239348,1764862239078,-500.0,0.00016692,2]
[396239349,1764862239088,-500.0,0.00016692,2]
[396239350,1764862239098,-500.0,0.00016692,2]
[396239351,1764862239107,-500.0,0.00016692,2]
[396239352,1764862239117,-1469.71413574,0.00016692,2]
[396239353,1764862239126,-500.0,0.00016692,2]
[396239354,1764862239136,-500.0,0.00016692,2]
[396239355,1764862239145,-500.0,0.00016692,2]
[396239356,1764862239155,-500.0,0.00016692,2]
[396239357,1764862239164,-171.28879437,0.00016692,2]
[396239358,1764862239174,-500.0,0.00016692,2]
[396239359,1764862239184,-500.0,0.00016692,2]
[396239360,1764862239194,-151.0,0.00016692,2]
[396239361,1764862239204,-2000.0,0.00016692,2]
[396239362,1764862239214,-500.0,0.00016692,2]
[396239363,1764862239223,-2000.0,0.00016692,2]
[396239364,1764862239233,-500.0,0.00016692,2]
[396239365,1764862239245,-2000.0,0.00016692,2]
[396239366,1764862239255,-500.0,0.00016692,2]
[396239367,1764862239264,-2000.0,0.00016692,2]
[396239368,1764862239274,-500.0,0.00016692,2]
[396239369,1764862239283,-2000.0,0.00016692,2]
[396239370,1764862239293,-500.0,0.00016692,2]
[396239371,1764862239302,-2000.0,0.00016692,2]
[396239372,1764862239311,-500.0,0.00016692,2]
[396239373,1764862239325,-2000.0,0.00016692,2]
[396239374,1764862239334,-151.0,0.00016692,2]
[396239375,1764862239344,-500.0,0.00016692,2]
[396239376,1764862239355,-2000.0,0.00016692,2]
[396239377,1764862239364,-2000.0,0.00016692,2]
[396239378,1764862239374,-500.0,0.00016692,2]
[396239379,1764862239383,-2000.0,0.00016692,2]
[396239380,1764862239398,-500.0,0.00016692,2]
[396239381,1764862239407,-2000.0,0.00016692,2]
[396239382,1764862239417,-500.0,0.00016692,2]
[396239383,1764862239426,-500.0,0.00016692,2]
[396239384,1764862239436,-1000.0,0.00016692,2]
[396239385,1764862239445,-250.0,0.00016692,2]
[396239386,1764862239455,-300.0,0.00016692,2]
[396239387,1764862239465,-1000.0,0.00016692,2]
[396239388,1764862239474,-1000.0,0.00016692,2]
[396239389,1764862239484,-1000.0,0.00016692,2]
[396239390,1764862239494,-1000.0,0.00016692,2]
[396239391,1764862239504,-1000.0,0.00016692,2]
[396239392,1764862239513,-1000.0,0.00016692,2]
[396239393,1764862239523,-1000.0,0.00016692,2]
[396239394,1764862239532,-1000.0,0.00016692,2]
[396239395,1764862239542,-1000.0,0.00016692,2]
[396239396,1764862239552,-1000.0,0.00016692,2]
[396239397,1764862239562,-277.35679052,0.00016692,2]
[396239398,1764862239572,-209.0,0.00016739,2]
[396239399,1764862239581,-2751.0,0.00016788,2]
[396239400,1764862239591,-150.0,0.00016826,2]
[396239401,1764862239600,-2734.48039924,0.0001689,2]
[396239402,1764862239610,-913.0,0.00016892,2]
[396239403,1764862239619,-184.0,0.00016892,2]
[396239404,1764862239629,-2734.4803992,0.00016893,2]
[396239405,1764862239638,-2734.4803992,0.00016896,2]
[396239406,1764862239647,-2734.4803992,0.00016899,2]
[396239407,1764862239657,-635.9508114,0.00016899,2]
[396239408,1764862239667,-151.0,0.00016899,2]
[396239409,1764862239677,-500.0,0.00016899,2]
[396239410,1764862239686,-163.0,0.000169,2]
[396239411,1764862239696,-163.0,0.000169,2]
[396239412,1764862239705,-163.0,0.000169,2]
[396239413,1764862239714,-165.0,0.000169,2]
[396239414,1764862239724,-165.9,0.000169,2]
[396239415,1764862239734,-1329.38307954,0.000169,2]
[396239416,1764862239747,-1904.96938586,0.000169,2]
[396239417,1764862239756,-3361.79609909,0.000169,2]
[396239418,1764862239766,-420.75030344,0.000169,2]
[396239419,1764862239778,-2734.4803992,0.00016902,2]
[396239420,1764862239787,-1329.38307951,0.00016902,2]
[396239421,1764862239796,-1329.38307951,0.00016904,2]
[396239422,1764862239806,-2734.4803992,0.00016904,2]
[396239423,1764862239815,-1329.38307951,0.00016905,2]
[396239424,1764862239824,-1329.38307951,0.00016907,2]
[396239425,1764862239834,-2734.4803992,0.00016907,2]
[396239426,1764862239843,-1329.38307951,0.00016909,2]
[396239427,1764862239853,-2734.4803992,0.0001691,2]
[396239428,1764862239862,-1329.38307951,0.00016911,2]
[396239429,1764862239872,-231.38,0.00016911,2]
[396239430,1764862239881,-1329.38307951,0.00016912,2]
[396239431,1764862239890,-2734.4803992,0.00016913,2]
[396239432,1764862239900,-1329.38307951,0.00016914,2]
[396239433,1764862239909,-2734.4803992,0.00016916,2]
[396239434,1764862239918,-1329.38307951,0.00016916,2]
[396239435,1764862239927,-150.0,0.00016955,2]
[396239436,1764862239937,-774.0,0.00016956,2]
[396239437,1764862239946,-2027.2941315,0.00016963,2]
[396239438,1764862239956,-7529.9538219,0.00016963,2]
[396239439,1764862239965,-785.0,0.00016972,2]
[396239440,1764862239975,-500.72119326,0.00016973,2]
[396239441,1764862239984,-500.0,0.00016973,2]
[396239442,1764862239994,-501.41731191,0.00016973,2]
[396239443,1764862240003,-598.94895177,0.00016973,2]
[396239444,1764862240013,-500.81969905,0.00016973,2]
[396239448,1764862240022,-501.53853237,0.00016973,2]
[396239450,1764862240032,-570.54818201,0.00016973,2]
[396239451,1764862240041,-500.76674524,0.00016973,2]
[396239452,1764862240050,-500.0,0.00016973,2]
[396239453,1764862240060,-502.19919953,0.00016973,2]
[396239454,1764862240069,-500.67287151,0.00016973,2]
[396239455,1764862240079,-500.7510768,0.00016973,2]
[396239456,1764862240088,-500.87735667,0.00016973,2]
[396239457,1764862240097,-501.2795972,0.00016973,2]
[396239458,1764862240107,-500.0,0.00016973,2]
[396239459,1764862240116,-504.23651257,0.00016973,2]
[396239460,1764862240125,-356.06806903,0.00016973,2]
[396239461,1764862240135,-165.12913536,0.00016973,2]
[396239462,1764862240144,-500.53943789,0.00016973,2]
[396239463,1764862240154,-155.04087109,0.00016973,2]
[396239464,1764862240163,-502.65219167,0.00016973,2]
[396239465,1764862240173,-607.0,0.00016973,2]
[396239466,1764862240182,-500.0,0.00016973,2]
[396239467,1764862240191,-505.52202945,0.00016983,2]
[396239468,1764862240200,-2275.0,0.00016986,2]
[396239469,1764862240210,-369.0,0.00016986,2]
[396239470,1764862240219,-817.76,0.0001699,2]
[396239471,1764862240228,-150.0,0.0001699,2]
[396239472,1764862240238,-500.0,0.0001699,2]
[396239473,1764862240247,-500.0,0.0001699,2]
[396239474,1764862240257,-150.0,0.0001699,2]
[396239475,1764862240267,-515.92948655,0.0001699,2]
[396239476,1764862240276,-515.92948655,0.0001699,2]
[396239477,1764862240467,-515.92948655,0.0001699,2]
[396239478,1764862240490,-151.0,0.00016997,2]
[396239479,1764862240503,-200524.67613253,0.00016997,2]
[396239486,1764862240568,-1399.95,0.00016997,2]
[396239488,1764862240580,-1278.79314303,0.00016997,2]
[396239490,1764862240592,-507.96196028,0.00016997,2]
[396239492,1764862240604,-3306.37281369,0.00016997,2]
[396239496,1764862240916,-1444.99999999,0.00016997,2]
[396239497,1764862241034,-3475.68549748,0.00016997,2]
[396239498,1764862241047,-5022.88342618,0.00016997,2]
[396239499,1764862241056,-161.39,0.00016999,2]
[396239500,1764862241067,-500.0,0.00016999,2]
[396239501,1764862241076,-386.09753338,0.00016999,2]
[396239502,1764862241085,-300.0,0.00016999,2]
[396239503,1764862241095,-500.0,0.00016999,2]
[396239504,1764862241104,-500.0,0.00016999,2]
[396239505,1764862241114,-500.0,0.00016999,2]
[396239506,1764862241123,-500.0,0.00016999,2]
[396239507,1764862241133,-486.54272582,0.00016999,2]
[396239508,1764862241143,-300.0,0.00016999,2]
[396239509,1764862241152,-500.0,0.00016999,2]
[396239510,1764862241161,-500.0,0.00016999,2]
[396239511,1764862241171,-500.0,0.00016999,2]
[396239512,1764862241180,-500.0,0.00016999,2]
[396239513,1764862241189,-500.0,0.00016999,2]
[396239514,1764862241199,-500.0,0.00016999,2]
[396239515,1764862241208,-564.71679928,0.00016999,2]
[396239516,1764862241217,-500.0,0.00016999,2]
[396239517,1764862241228,-500.0,0.00016999,2]
[396239518,1764862241237,-500.0,0.00016999,2]
[396239519,1764862241248,-391.46180021,0.00016999,2]
[396239520,1764862241257,-500.0,0.00016999,2]
[396239521,1764862241266,-500.0,0.00016999,2]
[396239522,1764862241275,-500.0,0.00016999,2]
[396239523,1764862241284,-500.0,0.00016999,2]
[396239524,1764862241293,-500.0,0.00016999,2]
[396239525,1764862241303,-500.0,0.00016999,2]
[396239526,1764862241313,-500.0,0.00016999,2]
[396239527,1764862241326,-500.0,0.00016999,2]
[396239528,1764862241335,-500.0,0.00016999,2]
[396239529,1764862241344,-500.0,0.00016999,2]
[396239530,1764862241354,-500.0,0.00016999,2]
[396239531,1764862241365,-500.0,0.00016999,2]
[396239532,1764862241375,-500.0,0.00016999,2]
[396239533,1764862241384,-500.0,0.00016999,2]
[396239534,1764862241397,-414.26440713,0.00016999,2]
[396239535,1764862241410,-329.60491006,0.00016999,2]
[396239536,1764862241420,-377.67817032,0.00016999,2]
[396239537,1764862241430,-500.0,0.00016999,2]
[396239538,1764862241439,-245.22840332,0.00016999,2]
[396239539,1764862241449,-500.0,0.00016999,2]
[396239540,1764862241460,-34597.09268772,0.00017,2]
[396239541,1764862241526,-2336.0,0.00017,2]
[396239542,1764862241537,-1339.0389684,0.00017,2]
[396239543,1764862241553,-1304131.39971707,0.00017,2]
[396239544,1764862241562,-160.0,0.00017,2]
[396239545,1764862241572,-297.64644087,0.00017,2]
[396239546,1764862241582,-250.0,0.00017,2]
[396239547,1764862241591,-2470.2754646,0.00017,2]
[396239548,1764862241600,-1463.6717013,0.00017,2]
[396239549,1764862241610,-200.0,0.00017,2]
[396239550,1764862241620,-404238.358573,0.00017,2]
[396239551,1764862241630,-107693.4974454,0.00017,2]
[396239552,1764862241640,-2252501.45667245,0.00017,2]
[396239553,1764862241652,-429656.63994954,0.00017,2]
[396239554,1764862241667,-1018202.05841692,0.00017,2]
[396239555,1764862241699,-2993.80498,0.00017,2]
[396239556,1764862241713,-464.2758966,0.00017,2]
[396239575,1764862246409,-1613.3279235,0.000166,2]
[396239577,1764862246421,-3169.50055999,0.000166,2]
[396239579,1764862246432,-837.818,0.000166,2]
[396239581,1764862246443,-95265.38731651,0.000166,2]
[396239583,1764862246452,-258.42975904,0.000169,2]
[396239585,1764862246462,-124997.5127094,0.00017,2]
[396239587,1764862246471,-151.0,0.00017,2]
[396239589,1764862246481,-151.0,0.00017,2]
[396239591,1764862246490,-151.0,0.00017,2]
[396239593,1764862246499,-103827.74613729,0.00017,2]
[396239595,1764862246511,-759.3450855,0.00017,2]
[396239616,1764862246711,-290.00972,0.00017,2]
[396239618,1764862246723,-356.94828119,0.00017,2]
[396239671,1764862247214,-2926.42349996,0.00017,2]
[396239674,1764862247225,-1765.97421016,0.00017,2]
[396239678,1764862247260,-311.11452737,0.00017,2]
[396239680,1764862247271,-379.86864274,0.00017,2]
[396239682,1764862247284,-4225.91798,0.00017,2]
[396239707,1764862247521,-127237.73283695,0.00017,2]
[396240348,1764862263801,155.94,8.388e-05,2]
[396240349,1764862275999,10866.17,0.00022,30]
[396240365,1764863432249,-456.64,0.00013699,2]
[396240366,1764863432259,-300.0,0.00014384,2]
[396240367,1764863432268,-171.88587715,0.00015068,2]
[396240368,1764863432280,-128.11412285,0.00015068,2]
[396240370,1764863432289,-300.0,0.00015068,2]
[396240371,1764863432299,-195.0,0.00015068,2]
[396240372,1764863432309,-45.90283494,0.00015068,2]
[396240373,1764863432324,-254.09716506,0.00015068,2]
[396240374,1764863432334,-300.0,0.00015474,2]